Cogmind - Beta 12 @@@ ROGUE MODE // 2023.03.22 @ 11:10:31 // Winter2019/RPGLIKE Player: ArabianSandBoa Result: Self-destructed Performance ------------- Evolutions (1) 500 Regions Visited (5) 1000 Robots Destroyed (130) 650 Value Destroyed (4122) 4122 Prototype IDs (24) 480 Alien Tech Used (0) 0 Bonus (1638) 1638 TOTAL SCORE: 8390 Bonus ------- High Alert Combat Kills 1508 Follower Combat Kills 132 Aligned with FarCom 300 Friendly Fire -302 Cogmind --------- Core Integrity 534/800 Matter 300/300 Energy 150/150 System Corruption 2% Temperature Cool (0) Movement Rolling (115) Ox1 Location -9/Exiles Parts ------- > --- POWER (1) -------- Light Angular Momentum Engine > --- PROPULSION (2) --- Armored Huge Wheel > --- UTILITY (7) ------ Salvage Targeting Computer Salvage Targeting Computer Salvage Targeting Computer Improved Salvage Targeting Computer Matter Filter Sensor Drone Bay (20/20) > --- WEAPON (5) ------- Enhanced Autogun Enhanced Autogun > --- INVENTORY (3) ---- Gauss Rifle Peak State ------------ > --- POWER ------------ Light Angular Momentum Engine > --- PROPULSION ------- Armored Huge Wheel > --- UTILITY ---------- Salvage Targeting Computer Salvage Targeting Computer Salvage Targeting Computer Improved Salvage Targeting Computer Matter Filter Light Armor Plating Sensor Drone Bay > --- WEAPON ----------- Enhanced Autogun Enhanced Autogun Gauss Rifle Improved Datajack > --- INVENTORY -------- (None) [Rating: 51] Favorites ----------- Power Light Angular Momentum Engine Engine Light Angular Momentum Engine Power Core Light Nuclear Core Propulsion Armored Wheel Leg Aluminum Leg Wheel Armored Wheel Utility Salvage Targeting Computer Device Improved Terrain Scanner Processor Salvage Targeting Computer Protection Light Armor Plating Weapon Enhanced Autogun Energy Gun Heavy EM Pulse Gun Energy Cannon EM Pulse Cannon Ballistic Gun Enhanced Autogun Ballistic Cannon Gauss Cannon Launcher Grenade Launcher Special Melee Weapon Improved Datajack Build | -11 -10 -10 -9 -9 -9 ------- Run | Jun Mat Min Mat Min Exi Slots Evolved 11 | 3 3 1 3 1 . Power . | . . . . . . Propulsion 1 | . . . 1 . . Utility 6 | 3 1 1 1 . . Weapon 4 | . 2 . 1 1 . Parts Attached 46 | 6 9 5 15 7 4 Power 5 | . 1 1 2 1 . Engine 4 | . . 1 2 1 . Core 1 | . 1 . . . . Reactor . | . . . . . . Propulsion 4 | 1 1 . 1 1 . Treads . | . . . . . . Leg . | . . . . . . Wheel 4 | 1 1 . 1 1 . Hover . | . . . . . . Flight . | . . . . . . Utility 19 | 4 4 2 6 2 1 Device 9 | 4 . 1 2 1 1 Storage . | . . . . . . Processor 6 | . 4 . 1 1 . Hackware . | . . . . . . Protection 4 | . . 1 3 . . Artifact . | . . . . . . Weapon 18 | 1 3 2 6 3 3 Energy Gun 3 | . 2 1 . . . Energy Cannon 1 | . . 1 . . . Ballistic Gun 11 | 1 . . 5 2 3 Ballistic Cannon 1 | . . . . 1 . Launcher 1 | . 1 . . . . Special Weapon . | . . . . . . Impact Weapon . | . . . . . . Slashing Weapon . | . . . . . . Piercing Weapon . | . . . . . . Special Melee Weapon 1 | . . . 1 . . Unidentified Prototypes 3 | . . . 2 . 1 Parts Lost 3 | . . . 1 1 1 Power . | . . . . . . Propulsion . | . . . . . . Utility 3 | . . . 1 1 1 Weapon . | . . . . . . Highest Loss Streak 1 | . . . 1 1 1 To Critical Strikes . | . . . . . . Average Slot Usage (%) 89 | . 91 97 97 92 66 Engine 5 | . 5 . 7 6 6 Core 2 | . 6 9 . . . Wheel 10 | . 12 9 13 6 6 Device 11 | . 30 6 4 6 12 Processor 28 | . 17 39 31 33 26 Protection 7 | . . 5 14 6 5 Energy Gun 4 | . 12 21 1 . . Energy Cannon 3 | . . 5 7 . . Ballistic Gun 8 | . . . 13 22 1 Special Melee Weapon 2 | . . . 2 6 5 Naked Turns . | . . . . . . Heaviest Build 39 | 10 14 30 38 29 39 Greatest Support 28 | 16 16 12 24 28 28 Greatest Overweight (x) 2 | . 1 2 2 1 1 Average Overweight (x) . | . . 1 1 . 1 Largest Inventory Capacity 3 | 1 2 2 3 3 3 Average Capacity 2 | . 1 2 2 3 3 Most Carried 3 | 1 1 2 3 3 3 Average Carried 2 | . . 1 2 2 2 Final Capacity 3 | 1 2 2 3 3 3 Final Carried 3 | 1 1 2 3 3 1 Class Distribution -------------------- 54% | Mutant 22% | Gunner 12% | Tank 9% | Scavenger-Mutant Dominant Class ---------------- Mutant | -10/Materials Gunner | -10/Mines Mutant | -9/Materials Gunner | -9/Mines Mutant | -9/Exiles Resources | -11 -10 -10 -9 -9 -9 ----------- Run | Jun Mat Min Mat Min Exi Matter Collected 2246 | 287 464 50 921 365 159 Remotely 120 | 26 94 . . . . Salvage Created 5285 | 127 1026 214 2776 1114 28 Parts 318 | 13 72 12 163 58 . Haulers Intercepted 7 | . 2 . 5 . . Recyclers Shooed 4 | 1 1 1 1 . . Parts Field Recycled . | . . . . . . Retrieved Matter . | . . . . . . Parts Self-Destructed . | . . . . . . Prevented . | . . . . . . Kills | -11 -10 -10 -9 -9 -9 ------- Run | Jun Mat Min Mat Min Exi Combat Hostiles Destroyed 97 | . 20 4 50 21 2 Guns 60 | . 12 2 23 21 2 Cannons 21 | . . . 21 . . AOE 15 | . 8 2 5 . . Classes Destroyed 15 | 2 5 1 6 1 . Worker 1 | . 1 . . . . Builder 2 | . . . 1 1 . Tunneler 8 | 3 . . . 5 . Hauler 7 | . 2 . 5 . . Recycler 10 | 1 2 1 4 2 . Mechanic 1 | . . . 1 . . Operator 4 | . 2 . 2 . . Watcher 6 | . 3 . 3 . . Swarmer 13 | . . 1 7 5 . Grunt 61 | . 20 3 27 11 . Brawler 4 | . . . 3 1 . Duelist 4 | . . . 3 1 . Protector 2 | . . . 2 . . Sentry 8 | . . . 8 . . Assembled 5 | . . . . 3 2 Thug 1 | . . . . 1 . Best Kill Streak 10 | 2 5 3 10 7 2 Combat Bots Only 10 | . 3 2 10 4 2 Max Kills in Single Turn 2 | 1 2 2 2 2 1 Gunslinging 1 | . 1 . 1 1 . Exploded 2 | . 2 2 1 . . Melee . | . . . . . . Uniques/NPCs Destroyed . | . . . . . . Combat | -11 -10 -10 -9 -9 -9 -------- Run | Jun Mat Min Mat Min Exi Damage Taken 3391 | . 415 26 2359 246 345 Core 2275 | . 336 23 1490 170 256 Absorbed by Shields . | . . . . . . Redirected to Core 1880 | . 237 9 1300 131 203 Regen/Repaired (Parts) 20 | . . . 20 . . Core Remaining (%) 98 | 100 . 96 . . . Volleys Fired 362 | 27 84 8 181 43 19 Largest 4 | 1 2 3 3 4 2 Hottest 153 | 20 90 153 153 98 50 Shots Fired 679 | 27 118 17 338 142 37 Gun 513 | 27 82 16 209 142 37 Cannon 130 | . . 1 129 . . Launcher 36 | . 36 . . . . Special . | . . . . . . Kinetic 415 | 27 14 . 195 142 37 Thermal . | . . . . . . Explosive 36 | . 36 . . . . Electromagnetic 228 | . 68 17 143 . . Robot Hit Streak 27 | 6 12 7 22 19 27 Robot Miss Streak 5 | 2 4 . 3 5 3 Penetration Max 1 | . . . . 1 . Secondary Targets 8 | . 1 . 2 5 . Max Gunslinging Chain 1 | . 1 . 1 1 . Shots Hit Robots 401 | 18 55 5 203 86 34 Core Hits 181 | 9 40 5 81 38 8 Critical Kills 1 | . . . . 1 . Critical Parts Destroyed 5 | . . . 2 2 1 Critical Strikes 9 | . 1 . 4 3 1 Destroy 6 | . . . 2 3 1 Corrupt 3 | . 1 . 2 . . Melee Attacks 6 | . . . . 2 4 Impact . | . . . . . . Slashing . | . . . . . . Piercing . | . . . . . . Sneak Attacks 6 | . . . . 2 4 Combat Hostiles . | . . . . . . Follow-up Attacks . | . . . . . . Damage Inflicted 9616 | 156 1683 283 5221 1685 588 Guns 5584 | 156 672 80 2403 1685 588 Cannons 2257 | . . . 2257 . . Explosions 1775 | . 1011 203 561 . . Melee . | . . . . . . Ramming . | . . . . . . Kinetic 4756 | 156 82 . 2245 1685 588 Thermal 464 | . 116 203 145 . . Explosive 1206 | . 895 . 311 . . Electromagnetic 3190 | . 590 80 2520 . . Impact . | . . . . . . Slashing . | . . . . . . Piercing . | . . . . . . Highest Corruption 2 | . . . 2 2 2 Average Corruption 2 | . . . 2 2 2 Corruption Purged . | . . . . . . Corruption Blocked . | . . . . . . Effects 36 | . . . 2 14 20 Message Errors 11 | . . . . 7 4 Matter Fused 7 | . . . . 3 4 Heat Flow Errors 8 | . . . . 2 6 Energy Discharges 3 | . . . 1 . 2 Data Loss (minor) 3 | . . . . 1 2 Data Loss (major) 3 | . . . . 1 2 Misfires 1 | . . . 1 . . Overload Shots . | . . . . . . Overflow Damage 277 | . 59 30 188 . . Projectiles 99 | . . . 99 . . Explosions 178 | . 59 30 89 . . Melee . | . . . . . . Knockbacks . | . . . . . . Impact . | . . . . . . Kinetic . | . . . . . . Secondary . | . . . . . . Self-Inflicted Damage 230 | . 134 . 96 . . Shots 9 | . 7 . 2 . . Rammed . | . . . . . . Targets Rammed . | . . . . . . Kicked . | . . . . . . Crushed . | . . . . . . Highest Temperature 361 | . 258 54 361 142 243 Average Temperature 74 | . 64 23 87 19 95 Received Heat Transfer 1391 | . 153 15 1131 92 . Effects 8 | . . . 7 . 1 Energy Bleed 2 | . . . 1 . 1 Interference 6 | . . . 6 . . Siege Activations . | . . . . . . Robots Corrupted 1 | . . . 1 . . Combat Hostiles 1 | . . . 1 . . Parts Fried 21 | . 2 . 19 . . Impact Corruptions . | . . . . . . Robots Melted . | . . . . . . Combat Hostiles . | . . . . . . Parts Melted . | . . . . . . Heat Transferred 500 | . 150 250 100 . . Parts Sabotaged . | . . . . . . Parts Stolen . | . . . . . . Parts Stripped . | . . . . . . Power Chain Reactions 8 | . 3 1 4 . . Missiles Intercepted . | . . . . . . Alert | -11 -10 -10 -9 -9 -9 ------- Run | Jun Mat Min Mat Min Exi Peak Influence 1876 | 20 1005 585 1876 1140 . Initial 731 | . 13 386 174 731 . Average 846 | 7 606 515 1041 989 . Maximum Alert Level 5 | . 3 2 5 4 . Low Security (%) 8 | 100 15 . 6 . . Level 1 9 | . 13 27 7 . . Level 2 20 | . 23 72 15 . . Level 3 37 | . 47 . 19 95 . Level 4 15 | . . . 33 4 . Level 5 7 | . . . 17 . . High Security . | . . . . . . Max Security . | . . . . . . Sterilizations 1 | . . . 1 . . Squads Dispatched 23 | . 8 1 13 1 . Investigation 17 | . 7 1 8 1 . Extermination . | . . . . . . Reinforcement 1 | . 1 . . . . Assault 5 | . . . 5 . . Garrison . | . . . . . . Intercept . | . . . . . . Searches Triggered . | . . . . . . Construction Impeded . | . . . . . . Haulers Reinforced . | . . . . . . Active Scanning Responses . | . . . . . . Cargo Convoy Interrupts . | . . . . . . Stealth | -11 -10 -10 -9 -9 -9 --------- Run | Jun Mat Min Mat Min Exi Distress Signals 6 | . 1 . 5 . . Communications Jammed . | . . . . . . Distress Signals . | . . . . . . Times Spotted 139 | . 29 2 80 23 5 Peak Tracking Total 11 | . 4 2 11 4 11 Tactical Retreats 12 | . 5 . 5 1 1 Traps | -11 -10 -10 -9 -9 -9 ------- Run | Jun Mat Min Mat Min Exi Traps Triggered 2 | . 1 . 1 . . Indirectly . | . . . . . . Trap Hack Attempts . | . . . . . . Triggered . | . . . . . . Disarmed . | . . . . . . Reprogrammed . | . . . . . . Reused . | . . . . . . Traps Extracted . | . . . . . . Installed . | . . . . . . Triggered 2 | . . . 1 1 . Exploded 3 | . . . . . 3 Machines | -11 -10 -10 -9 -9 -9 ---------- Run | Jun Mat Min Mat Min Exi Machines Disabled 66 | . 20 5 36 2 3 Max in Single Turn 2 | . 2 2 2 1 1 Machines Repaired 3 | . 1 . 2 . . Machines Sabotaged . | . . . . . . Overloaded Fab Kills . | . . . . . . Hacking | -11 -10 -10 -9 -9 -9 --------- Run | Jun Mat Min Mat Min Exi Machines Accessed 25 | . 9 3 12 1 . Terminals 17 | . 7 1 9 . . Fabricators . | . . . . . . Repair Stations 1 | . . . 1 . . Recycling Units 3 | . 2 . 1 . . Scanalyzers 1 | . . . 1 . . Garrison Access . | . . . . . . Total Hacks 112 | . 48 6 57 1 . Successful 74 | . 31 4 38 1 . Failed 37 | . 17 2 18 . . Catastrophic 3 | . 2 . 1 . . Database Lockouts 1 | . . . 1 . . Manual 52 | . 30 4 17 . 1 Terminals 91 | . 40 4 47 . . Fabricators . | . . . . . . Repair Stations 5 | . . . 5 . . Recycling Units 11 | . 8 . 3 . . Scanalyzers 2 | . . . 2 . . Garrison Access . | . . . . . . Terminal Hacks 43 | . 17 3 22 1 . Record 4 | . . . 4 . . Robot Analysis 9 | . 7 . 2 . . Prototype ID Bank 7 | . 5 . 2 . . Open Door 3 | . . 2 . 1 . Level Access Points 1 | . 1 . . . . Branch Access Points 1 | . . . 1 . . Terminal Index 1 | . . . 1 . . Scanalyzer Index 2 | . 1 . 1 . . Unreport Threat 3 | . . . 3 . . Locate Traps 1 | . . 1 . . . Reprogram Traps 1 | . 1 . . . . Dispatch Records 1 | . . . 1 . . Maintenance Status 1 | . . . 1 . . Security Status 1 | . . . 1 . . Surveillance Status 1 | . . . 1 . . Investigation Status 1 | . . . 1 . . Recall Investigation 1 | . . . 1 . . Hauler Manifests 1 | . . . 1 . . Registered Components 2 | . 1 . 1 . . Zone Layout 1 | . 1 . . . . Fabricator Hacks . | . . . . . . Repair Station Hacks 4 | . . . 4 . . Scan Component 2 | . . . 2 . . Repair 2 | . . . 2 . . Recycling Unit Hacks 1 | . 1 . . . . Report Inventory 1 | . 1 . . . . Scanalyzer 2 | . . . 2 . . Insert Component 1 | . . . 1 . . Analyze 1 | . . . 1 . . Garrison Access Hacks . | . . . . . . Unauthorized Hacks 24 | . 13 1 10 . . Terminals 18 | . 8 1 9 . . Botnet 8 | . 5 . 3 . . Sabotage 5 | . 1 . 4 . . Search 5 | . 2 1 2 . . Fabricators . | . . . . . . Repair Stations . | . . . . . . Recycling Units 6 | . 5 . 1 . . Monitor 1 | . 1 . . . . Reject 1 | . 1 . . . . Mask 1 | . 1 . . . . Tunnel 3 | . 2 . 1 . . Scanalyzers . | . . . . . . Garrison Access . | . . . . . . Data Cores Recovered 2 | . 1 . 1 . . Used 1 | . 1 . . . . Hacking Detections 18 | . 8 . 10 . . Full Trace Events 5 | . 4 . 1 . . Feedback Events . | . . . . . . Feedback Blocked . | . . . . . . Robot Schematics Acquired . | . . . . . . Robots Built . | . . . . . . Authchips . | . . . . . . Time . | . . . . . . Total Robot Build Rating . | . . . . . . Part Schematics Acquired 1 | . . . 1 . . Parts Built . | . . . . . . Authchips . | . . . . . . Time . | . . . . . . Total Part Build Rating . | . . . . . . Parts Repaired 2 | . . . 2 . . Time 136 | . . . 136 . . Parts Recycled . | . . . . . . Recycled Matter . | . . . . . . Retrieved Matter . | . . . . . . Retrieved Components . | . . . . . . Parts Scanalyzed 1 | . . . 1 . . Part Schematics Acquired 1 | . . . 1 . . Parts Damaged 1 | . . . 1 . . Bothacking | -11 -10 -10 -9 -9 -9 ------------ Run | Jun Mat Min Mat Min Exi Used RIF Installer . | . . . . . . Robots Hacked 6 | . . . . 2 4 Non-combat 5 | . . . . 2 3 Combat 1 | . . . . . 1 Robot Hacks Applied 6 | . . . . 2 4 parse_system 6 | . . . . 2 4 Relay Couplers Released . | . . . . . . Fabnet Peak Effective % . | . . . . . . Robots Rewired . | . . . . . . Allies Hacked . | . . . . . . Hacks Repelled . | . . . . . . Allies | -11 -10 -10 -9 -9 -9 -------- Run | Jun Mat Min Mat Min Exi Total Allies 6 | . . 4 . 2 . Largest Group 4 | . . 4 4 2 . Highest-Rated Group 71 | . . 71 71 42 . Highest-Rated Ally 31 | . . 31 31 31 . Total Orders 3 | . . 2 1 . . STAY 1 | . . 1 . . . ROAM 1 | . . . 1 . . FOLLOW 1 | . . 1 . . . Ally Attacks 47 | . . 3 38 6 . Total Damage 472 | . . 54 375 43 . Kills 10 | . . 1 7 2 . Allies Corrupted . | . . . . . . Allies Melted . | . . . . . . Intel | -11 -10 -10 -9 -9 -9 ------- Run | Jun Mat Min Mat Min Exi Robot Analysis Total 9 | . 7 . 2 . . Derelict Logs Recovered 4 | . . 2 . 2 . Drone Launches . | . . . . . . Drone Recoveries . | . . . . . . Exploration | -11 -10 -10 -9 -9 -9 ------------- Run | Jun Mat Min Mat Min Exi Turns Passed 6125 | 94 1146 576 2138 903 1268 Spaces Moved 4121 | 30 765 473 1185 687 981 Core . | . . . . . . Treads . | . . . . . . Legs 1 | 1 . . . . . Wheels 4120 | 29 765 473 1185 687 981 Hover . | . . . . . . Flight . | . . . . . . Fastest Speed 90 | 100 90 90 90 90 115 Average Speed 106 | 100 95 106 108 100 115 Slowest Speed 120 | 120 105 120 120 115 115 Overloaded Moves . | . . . . . . Propulsion Burnouts . | . . . . . . Robots Hopped . | . . . . . . Cave-ins Triggered . | . . . . . . Exploration Rate (%) 73 | 3 94 98 80 97 68 Regions Visited 5 Branch Regions 3 Pre-discovered Areas 5 | . 2 1 1 1 . Known Exits Taken 2 | . . 1 1 . . Unknown Exits Taken 3 | 1 1 . . 1 . Scrap Searched 3 | . . 2 . 1 . Spaces Dug . | . . . . . . Terrain Destroyed 608 | . 250 20 318 20 . Melee . | . . . . . . Projectile 8 | . . . . 8 . AOE 600 | . 250 20 318 12 . Terrain Rammed . | . . . . . . Walls Destroyed . | . . . . . . Machines Disabled . | . . . . . . Actions | -11 -10 -10 -9 -9 -9 --------- Run | Jun Mat Min Mat Min Exi Total 5424 | 70 1064 527 1817 839 1107 Wait 679 | 5 175 33 337 63 66 Move 4116 | 29 764 472 1184 686 981 Hop . | . . . . . . Pick Up 28 | 1 3 4 7 2 11 Fast Attach 37 | 6 7 4 11 6 3 Attach 5 | . 1 1 2 . 1 Detach 6 | . . . 1 . 5 Swap 4 | . 1 . 2 1 . Drop 55 | 2 9 5 13 9 17 Fire 362 | 27 84 8 181 43 19 Melee 6 | . . . . 2 4 Ram . | . . . . . . Kick . | . . . . . . Crush . | . . . . . . Escape Stasis . | . . . . . . Rewire . | . . . . . . Trap . | . . . . . . Miscellaneous 126 | . 20 . 79 27 . Route ------- -11/Junkyard -10/Materials (discovered 4 exits: *Mat x3 / *Min) -10/Mines (discovered 2 exits: *Mat x2) -9/Materials (discovered 4 exits: [*Mat x3] / *Min) -9/Mines (discovered 3 exits: [*Mat x2] / *Exi) -9/Exiles History --------- Turn | Location | Event 1 | -11/Junkyard | Upgraded with Utility slot (x3) 1 | -11/Junkyard | Discovered new exit (range 1) 95 | -11/Junkyard | Entered Materials 155 | -10/Materials | Discovered new exit (range 17) 315 | -10/Materials | Build established: Scavenger-Mutant 411 | -10/Materials | Reached level 2 459 | -10/Materials | Upgraded with Weapon slot (x1) 488 | -10/Materials | Discovered new exit (range 17) 698 | -10/Materials | Discovered new exit (range 9) 701 | -10/Materials | Identified exit to Materials 774 | -10/Materials | Reached level 3 780 | -10/Materials | Upgraded with Utility slot (x1) 1030 | -10/Materials | Reached level 4 1050 | -10/Materials | Build established: Mutant 1056 | -10/Materials | Upgraded with Weapon slot (x1) 1241 | -10/Materials | Entered Mines 1247 | -10/Mines | Met a Derelict bent on vengeance 1313 | -10/Mines | Reached level 5 1328 | -10/Mines | Discovered exit to Materials (range 9) 1438 | -10/Mines | Learned Materials emergency access door positions 1454 | -10/Mines | Assisted by bots powering up and referring to "LRC-V3" 1484 | -10/Mines | Met a Derelict who couldn't figure out how to use a Trap Extractor 1576 | -10/Mines | Received a Mining Laser from a helpful Derelict 1732 | -10/Mines | Upgraded with Utility slot (x1) 1749 | -10/Mines | Found the Drone Emporium 1756 | -10/Mines | Found Prototype Device 1787 | -10/Mines | Discovered exit to Materials (range 17) 1817 | -10/Mines | Entered Materials 1817 | -9/Materials | Accompanied by 4 allies 1818 | -9/Materials | Build established: Gunner 1819 | -9/Materials | Reached level 6 1901 | -9/Materials | Central database locked down 1901 | -9/Materials | Identified exit to Mines 2093 | -9/Materials | Reached level 7 2256 | -9/Materials | Build established: Mutant 2294 | -9/Materials | Upgraded with Propulsion slot (x1) 2324 | -9/Materials | Reached level 8 2327 | -9/Materials | Upgraded with Utility slot (x1) 2467 | -9/Materials | Discovered new exit (range 3) 2617 | -9/Materials | First assault squad dispatched 2624 | -9/Materials | Reached level 9 2631 | -9/Materials | Upgraded with Weapon slot (x1) 3068 | -9/Materials | Discovered new exit (range 9) 3173 | -9/Materials | Repaired Broken Enh. Autogun 3213 | -9/Materials | Build established: Tank 3234 | -9/Materials | Repaired Faulty Enh. Autogun 3363 | -9/Materials | Reached level 10 3498 | -9/Materials | Discovered new exit (range 9) 3548 | -9/Materials | Core integrity fell below 50% 3562 | -9/Materials | Core integrity fell below 20% 3578 | -9/Materials | Sterilization system engaged 3578 | -9/Materials | Non-combat units ordered to evacuate 3609 | -9/Materials | Destroyed 10 combat bots 3678 | -9/Materials | Combat units ordered to evacuate 3841 | -9/Materials | Build established: Mutant 3878 | -9/Materials | Ambient heat levels rising (+10) 3955 | -9/Materials | Entered Mines 4005 | -9/Mines | Met a Derelict shopkeep closing up shop 4062 | -9/Mines | Excavation squad dispatched 4062 | -9/Mines | A large section of the Mines collapsed 4090 | -9/Mines | Reached level 11 4199 | -9/Mines | Learned Materials emergency access door positions 4219 | -9/Mines | Discovered new exit (range 4) 4305 | -9/Mines | Build established: Gunner 4383 | -9/Mines | Received a Rocket Launcher from a helpful Derelict 4428 | -9/Mines | Upgraded with Weapon slot (x1) 4528 | -9/Mines | Learned location of 1 exit from Materials 4618 | -9/Mines | Discovered new exit (range 10) 4634 | -9/Mines | Learned location of Storage (-8) 4853 | -9/Mines | Deemed a non-threat by the Exiles lab entrance 4854 | -9/Mines | Discovered new exit (range 5) 4858 | -9/Mines | Entered Exiles 4860 | -9/Exiles | Identified Sensor Drone Bay 4891 | -9/Exiles | Met 8R-AWN 4911 | -9/Exiles | Met EX-HEX 4943 | -9/Exiles | Met EX-BIN 4956 | -9/Exiles | Aligned with FarCom system 4957 | -9/Exiles | Given EX-Vault access code 4983 | -9/Exiles | Opened EX-Vault 5000 | -9/Exiles | Warned to stay clear of 0b10 Research branches 5042 | -9/Exiles | Met EX-DEC 5158 | -9/Exiles | Build established: Mutant 5226 | -9/Exiles | Found Deploy-a-Sentry 5228 | -9/Exiles | Found Deploy-a-Sentry 5230 | -9/Exiles | Found Deploy-a-Sentry 5439 | -9/Exiles | Found Prototype Processor 5447 | -9/Exiles | Found Prototype Energy Gun 6005 | -9/Exiles | Attacked by the Exiles 6126 | -9/Exiles | Self-destructed Last Messages --------------- 06116_ Penetrated by HV Slug. 06116_ HV Slug penetrates Earth. 06117_ Destroyed 8R-AWN's Armor/TH. 06118_ Extracted 4 matter. 06118_ Penetrated by HV Slug. 06118_ HV Slug penetrates Earth. 06119_ Penetrated by HV Slug. 06119_ HV Slug penetrates Earth. 06120_ Extracted 4 matter. 06121_ Penetrated by HV Slug. 06121_ HV Slug penetrates Earth. 06122_ Extracted 4 matter. 06122_ Penetrated by HV Slug. 06122_ HV Slug penetrates Earth. 06124_ Penetrated by HV Slug. 06124_ HV Slug penetrates Earth. 06125_ Earth collapses. 06125_ Extracted 4 matter. 06125_ Penetrated by HV Slug. 06125_ HV Slug penetrates Earth. Map ----- +----------------------------------------------------+ | ?????????????????????????????????????????????????? | | ?????????????????????????????????????????????????? | | ?????????????????????????????????????????????????? | | ?????????????????????????????????????????????????? | | ?????????????????????????????????????????????????? | | ?????????????????????????????????????????????????? | | ?????????????????????????????????????????????????? | | ?????????????????????????????????????????????????? | | ?????????????????????????????????????????????????? | | ?????????????????????????????????????????????????? | | ?????????????????????????????????????????????????? | | ?????????????? ??????????????#######?????????????? | | ?????????????? ######???????#!!! "#?????????????? | | ????????????? #""#??????# "#?????????????? | | ????????????? ??????# "#?????????????? | | ?????????????" #????## ""#????????????## | | ?????????????" #####" ""#???????????? | | ??????????????# ##" ""?????????????" | | ???????????????# #"" #????????????#"" | | ??????????????????# #????????????#"" | | ?????????????????????# ##???????????#"" | | ?????????????????????### #???????????? | | ???????????????########" ###???????????" | | ???????????????# !!"""" %%% "#??????????# | | ???????????????#! & g"###"" % ######???### | | ???????????????#! & / @ #?##" * "#####X# | | ???????????????# ![& ##??#" | | ???????????????# """"""#;#???#"# * | | ???????????????########## #???#### | | ????????????????????????# #??????### | | ????????????????????????# #????????### * | | ????????????????????????# #??????????## | | ????????????????????????# #???????????## | | ????????????????????????# #????????????##" | | ????????????????????????###?????????????#""" | | ???????????????????????????????????????##" | | ???????????????????????????????????????#"" | | ??????????????????????????????????????##""" | | ??????????????????????????????????????#""" | | ??????????????????????????????????????#""" | | ??????????????????????????????????????#"" | | ??????????????????????????????????????#""" | | ??????????????????????????????????????#"" | | ??????????????????????????????????????##"" | | ???????????????????????????????????????#"""" | | ???????????????????????????????????????## | | ????????????????????????????????????????#" | | ????????????????????????????????????????#"""" | | ????????????????????????????????????????#"" | | ????????????????????????????????????????#" | +----------------------------------------------------+ Best States ------------- Heat Dissipation 69 Energy Generation 18 Energy Capacity 250 Matter Stores 300 Matter Capacity 300 Sight Range 17 Terrain Scan Range 16 Terrain Scan Density 110 Armor Coverage 450 Evasion (%) 42 Matter Filtering 30 Salvage Targeting 6 Offensive Hacking 10 Defensive Hacking 5 Item Schematics ----------------- Enh. Autogun | -9/Materials | Scanalyzed Robot Schematics ------------------ None Fabricated ------------ Nothing Alien Tech Used ----------------- None Achievements -------------- None Challenges ------------ None RPGLIKE | -11 -10 -10 -9 -9 -9 --------- Run | Jun Mat Min Mat Min Exi Levels Raised 10 | . 3 1 5 1 . XP Earned 18504 | 3000 4821 1484 8289 830 80 XP Spent 17860 | 2750 4450 1750 7510 1400 . Upgrades 34 | 5 9 2 17 1 . Propulsion Slot 1 | . . . 1 . . Utility Slot 6 | 3 1 1 1 . . Weapon Slot 4 | . 2 . 1 1 . Core Integrity 4 | . . . 4 . . Heat Dissipation 5 | . . 1 4 . . Inventory Capacity 3 | 1 1 . 1 . . Sight Range 1 | 1 . . . . . Terrain Scan Density 1 | . 1 . . . . Ranged Accuracy 3 | . 1 . 2 . . Hack Attack % 2 | . 2 . . . . Hack Defense % 1 | . 1 . . . . KI Damage % 3 | . . . 3 . . Protomatter Created 1178 | . 240 10 692 224 12 Integrity Restored 2536 | . 409 . 1544 583 . Core 2009 | . 336 . 1113 560 . Parts 527 | . 73 . 431 23 . Protomatter Decayed 362 | . 28 10 304 . 20 Game ------ Seed DispersionActivePlating Manual? 1 Play Time 00:49:09 Cumulative 497.1 hours Start 2023.03.21 @ 17:49:21 End 2023.03.22 @ 11:10:31 Sessions 11 Manual Loads 0 Difficulty Rogue Special Mode Winter2019/RPGLIKE Game No. 534 Rogue 534 Adventurer 0 Explorer 0 Win Type - Total 1 Types 1/0/0/0/0/0/0/0/0 Lore% 61 Gallery% 82 Achievement% 65 Wizard Run 0 Options --------- ASCII 0 Keyboard 0 Movement Mouse Keybinds 0 Fullscreen 2 Font 24/Smallcaps Map View 76x50 Tactical HUD 1 Map Filters NONE Filters NONE Steam 1 RUN: 6a9cf8a5-5b52-4e5e-b43e-f7fcc424dd03